fUSD/lending_fUSD_20260506
["ID","MTS","AMOUNT","RATE_DAILY","PERIOD"]
[421657521,1778033445000,-200.0,0.00018359,2]
[421657524,1778033445000,-200.0,0.00018359,2]
[421657531,1778033445000,-221.0,0.00018476,2]
[421657520,1778033445000,-200.0,0.00018359,2]
[421657522,1778033445000,-200.0,0.00018359,2]
[421657523,1778033445000,-200.0,0.00018359,2]
[421657527,1778033445000,-200.0,0.00018359,2]
[421657529,1778033445000,-1786.0,0.0001841,2]
[421657514,1778033445000,-529.49570264,0.00018104,2]
[421657526,1778033445000,-200.0,0.00018359,2]
[421657528,1778033445000,-258.0,0.00018359,2]
[421657532,1778033445000,-187.0,0.00018476,2]
[421657534,1778033445000,-259.0,0.00018476,2]
[421657533,1778033445000,-221.0,0.00018476,2]
[421657535,1778033445000,-362.0,0.00018476,2]
[421657536,1778033445000,-160.9,0.00018617,2]
[421657537,1778033445000,-2500.0,0.0001863,2]
[421657540,1778033445000,-834.32,0.00018632,2]
[421657539,1778033445000,-507.25309693,0.0001863,2]
[421657538,1778033445000,-2500.0,0.0001863,2]
[421657541,1778033445000,-4609.0,0.00018647,2]
[421657479,1778033445000,-150.0,0.000179,2]
[421657525,1778033445000,-200.0,0.00018359,2]
[421657509,1778033445000,-529.49570264,0.00018073,2]
[421657530,1778033445000,-152.0,0.00018415,9]
[421657511,1778033445000,-2000.0,0.00018082,2]
[421657484,1778033445000,-150.0,0.000179,2]
[421657512,1778033445000,-2000.0,0.00018082,2]
[421657489,1778033445000,-529.49570264,0.00017916,2]
[421657487,1778033445000,-1352.0,0.000179,2]
[421657486,1778033445000,-925.0,0.000179,2]
[421657491,1778033445000,-502.63980569,0.00017927,2]
[421657490,1778033445000,-529.49570264,0.00017917,2]
[421657492,1778033445000,-529.49570264,0.00017934,2]
[421657495,1778033445000,-8128.0025126,0.00017936,2]
[421657493,1778033445000,-529.49570264,0.00017935,2]
[421657494,1778033445000,-529.49570264,0.00017936,2]
[421657497,1778033445000,-502.63980569,0.00017977,2]
[421657496,1778033445000,-8128.0025126,0.00017944,2]
[421657505,1778033445000,-529.49570264,0.0001801,2]
[421657485,1778033445000,-3536.0,0.000179,2]
[421657515,1778033445000,-529.49570264,0.00018116,2]
[421657500,1778033445000,-350.0,0.00018,2]
[421657510,1778033445000,-529.49570264,0.0001808,2]
[421657508,1778033445000,-529.49570264,0.00018051,2]
[421657506,1778033445000,-8128.0025126,0.00018012,2]
[421657504,1778033445000,-529.49570264,0.00018003,2]
[421657503,1778033445000,-502.63980569,0.00018001,2]
[421657507,1778033445000,-152.0,0.00018036,8]
[421657501,1778033445000,-312.623494,0.00018,2]
[421657498,1778033445000,-529.49570264,0.00017996,2]
[421657499,1778033445000,-155.0,0.00017999,2]
[421657502,1778033445000,-529.49570264,0.00018001,2]
[421657513,1778033445000,-2000.0,0.00018082,2]
[421657578,1778033446000,-174.61919141,0.00018705,2]
[421657593,1778033446000,-500.0,0.00018705,2]
[421657583,1778033446000,-151.0,0.00018705,2]
[421657581,1778033446000,-151.0,0.00018705,2]
[421657579,1778033446000,-151.0,0.00018705,2]
[421657576,1778033446000,-151.0,0.00018705,2]
[421657574,1778033446000,-319.89580616,0.00018705,2]
[421657577,1778033446000,-151.0,0.00018705,2]
[421657575,1778033446000,-151.0,0.00018705,2]
[421657569,1778033446000,-151.0,0.00018705,2]
[421657582,1778033446000,-151.0,0.00018705,2]
[421657580,1778033446000,-151.0,0.00018705,2]
[421657594,1778033446000,-151.0,0.00018705,2]
[421657598,1778033446000,-151.0,0.00018705,2]
[421657596,1778033446000,-151.0,0.00018705,2]
[421657590,1778033446000,-151.0,0.00018705,2]
[421657586,1778033446000,-500.0,0.00018705,2]
[421657595,1778033446000,-500.0,0.00018705,2]
[421657585,1778033446000,-151.0,0.00018705,2]
[421657587,1778033446000,-151.0,0.00018705,2]
[421657588,1778033446000,-500.0,0.00018705,2]
[421657592,1778033446000,-279.9045709,0.00018705,2]
[421657597,1778033446000,-500.0,0.00018705,2]
[421657599,1778033446000,-500.0,0.00018705,2]
[421657600,1778033446000,-151.0,0.00018705,2]
[421657572,1778033446000,-500.0,0.00018705,2]
[421657584,1778033446000,-500.0,0.00018705,2]
[421657573,1778033446000,-204.02508523,0.00018705,2]
[421657542,1778033446000,-744.82,0.000187,2]
[421657571,1778033446000,-151.0,0.00018705,2]
[421657602,1778033446000,-500.0,0.00018705,2]
[421657543,1778033446000,-578.20924308,0.00018705,2]
[421657544,1778033446000,-200.0,0.00018705,2]
[421657550,1778033446000,-1428.38747117,0.00018705,2]
[421657552,1778033446000,-500.0,0.00018705,2]
[421657551,1778033446000,-151.0,0.00018705,2]
[421657553,1778033446000,-151.0,0.00018705,2]
[421657549,1778033446000,-500.0,0.00018705,2]
[421657547,1778033446000,-151.0,0.00018705,2]
[421657546,1778033446000,-500.0,0.00018705,2]
[421657554,1778033446000,-500.0,0.00018705,2]
[421657545,1778033446000,-721.12765535,0.00018705,2]
[421657570,1778033446000,-500.0,0.00018705,2]
[421657556,1778033446000,-500.0,0.00018705,2]
[421657555,1778033446000,-151.0,0.00018705,2]
[421657557,1778033446000,-151.0,0.00018705,2]
[421657567,1778033446000,-179.76945692,0.00018705,2]
[421657564,1778033446000,-500.0,0.00018705,2]
[421657559,1778033446000,-151.0,0.00018705,2]
[421657558,1778033446000,-500.0,0.00018705,2]
[421657560,1778033446000,-500.0,0.00018705,2]
[421657561,1778033446000,-151.0,0.00018705,2]
[421657563,1778033446000,-151.0,0.00018705,2]
[421657562,1778033446000,-500.0,0.00018705,2]
[421657565,1778033446000,-743.50770149,0.00018705,2]
[421657568,1778033446000,-500.0,0.00018705,2]
[421657566,1778033446000,-151.0,0.00018705,2]
[421657601,1778033446000,-151.0,0.00018705,2]
[421657548,1778033446000,-9552.16786547,0.00018705,2]
[421657605,1778033446000,-151.0,0.00018705,2]
[421657631,1778033446000,-11878.85235123,0.00019035,2]
[421657635,1778033446000,-12318.36988823,0.0001909,2]
[421657639,1778033446000,-2000.0,0.00019154,2]
[421657636,1778033446000,-151.0,0.0001909,2]
[421657641,1778033446000,-500.0,0.00019178,2]
[421657650,1778033446000,-500.0,0.00019178,2]
[421657642,1778033446000,-500.0,0.00019178,2]
[421657643,1778033446000,-500.0,0.00019178,2]
[421657640,1778033446000,-152.0,0.00019174,11]
[421657644,1778033446000,-500.0,0.00019178,2]
[421657645,1778033446000,-500.0,0.00019178,2]
[421657649,1778033446000,-500.0,0.00019178,2]
[421657629,1778033446000,-777.34,0.00019,2]
[421657648,1778033446000,-500.0,0.00019178,2]
[421657652,1778033446000,-500.0,0.00019178,2]
[421657651,1778033446000,-500.0,0.00019178,2]
[421657657,1778033446000,-2909.98,0.00019178,2]
[421657654,1778033446000,-500.0,0.00019178,2]
[421657653,1778033446000,-500.0,0.00019178,2]
[421657658,1778033446000,-151.0,0.00019178,2]
[421657659,1778033446000,-151.0,0.00019178,2]
[421657661,1778033446000,-151.0,0.00019178,2]
[421657655,1778033446000,-500.0,0.00019178,2]
[421657656,1778033446000,-500.0,0.00019178,2]
[421657660,1778033446000,-151.0,0.00019178,2]
[421657603,1778033446000,-151.0,0.00018705,2]
[421657647,1778033446000,-500.0,0.00019178,2]
[421657632,1778033446000,-151.0,0.00019035,2]
[421657646,1778033446000,-500.0,0.00019178,2]
[421657637,1778033446000,-12774.14957409,0.00019145,2]
[421657615,1778033446000,-9905.5980765,0.0001876,2]
[421657634,1778033446000,-10598.58992052,0.00019087,2]
[421657610,1778033446000,-151.0,0.00018705,2]
[421657614,1778033446000,-150.0,0.00018734,2]
[421657606,1778033446000,-500.0,0.00018705,2]
[421657604,1778033446000,-500.0,0.00018705,2]
[421657609,1778033446000,-151.0,0.00018705,2]
[421657608,1778033446000,-500.0,0.00018705,2]
[421657607,1778033446000,-151.0,0.00018705,2]
[421657612,1778033446000,-1386.78395259,0.00018705,2]
[421657613,1778033446000,-209.40437684,0.00018705,2]
[421657625,1778033446000,-11046.30350255,0.00018925,2]
[421657617,1778033446000,-152.0,0.00018794,10]
[421657626,1778033446000,-151.0,0.00018925,2]
[421657611,1778033446000,-151.0,0.00018705,2]
[421657638,1778033446000,-151.0,0.00019145,2]
[421657627,1778033446000,-11455.01673214,0.0001898,2]
[421657630,1778033446000,-345.96,0.00019,2]
[421657628,1778033446000,-151.0,0.0001898,2]
[421657624,1778033446000,-151.0,0.0001887,2]
[421657623,1778033446000,-10652.17309792,0.0001887,2]
[421657621,1778033446000,-10272.10520533,0.00018815,2]
[421657622,1778033446000,-151.0,0.00018815,2]
[421657619,1778033446000,-342.98,0.000188,2]
[421657618,1778033446000,-84912.09014516,0.000188,2]
[421657616,1778033446000,-151.0,0.0001876,2]
[421657620,1778033446000,-282.66,0.000188,2]
[421657633,1778033446000,-908.2,0.00019045,2]
[421657702,1778033447000,-259.0,0.00019476,2]
[421657709,1778033447000,-160.0,0.000198,7]
[421657717,1778033447000,-187.78006525,0.00019801,2]
[421657705,1778033447000,-152.0,0.00019553,12]
[421657703,1778033447000,-362.0,0.00019476,2]
[421657694,1778033447000,-1645.0,0.00019371,2]
[421657700,1778033447000,-187.0,0.00019476,2]
[421657698,1778033447000,-887.50683813,0.00019474,2]
[421657699,1778033447000,-221.0,0.00019476,2]
[421657697,1778033447000,-193.0,0.00019444,2]
[421657715,1778033447000,-799.54513345,0.00019801,2]
[421657701,1778033447000,-221.0,0.00019476,2]
[421657711,1778033447000,-200.0,0.00019801,2]
[421657730,1778033447000,-13065.22364919,0.0002,2]
[421657713,1778033447000,-1536.04360649,0.00019801,2]
[421657723,1778033447000,-4985.80116682,0.000199,3]
[421657721,1778033447000,-367.64069705,0.00019801,2]
[421657719,1778033447000,-1491.30447232,0.00019801,2]
[421657738,1778033447000,-160.0,0.0002,3]
[421657736,1778033447000,-158.0,0.0002,9]
[421657725,1778033447000,-152.0,0.00019932,13]
[421657728,1778033447000,-25874.06935723,0.0002,2]
[421657732,1778033447000,-4834.92083196,0.0002,3]
[421657742,1778033447000,-777.0,0.0002,2]
[421657734,1778033447000,-151.0,0.0002,2]
[421657696,1778033447000,-150.0,0.00019444,2]
[421657707,1778033447000,-150.0,0.00019734,2]
[421657695,1778033447000,-16447.83557508,0.00019411,2]
[421657662,1778033447000,-151.0,0.00019178,2]
[421657693,1778033447000,-1650.0,0.00019371,2]
[421657663,1778033447000,-151.0,0.00019178,3]
[421657740,1778033447000,-150.256482,0.0002,2]
[421657664,1778033447000,-277.281901,0.00019178,3]
[421657666,1778033447000,-151.0,0.00019178,2]
[421657665,1778033447000,-159.516663,0.00019178,2]
[421657673,1778033447000,-1565.54992568,0.00019178,2]
[421657672,1778033447000,-2263.51821393,0.00019178,2]
[421657676,1778033447000,-952.15,0.000192,2]
[421657668,1778033447000,-151.0,0.00019178,2]
[421657675,1778033447000,-151.0,0.000192,2]
[421657670,1778033447000,-151.0,0.00019178,2]
[421657671,1778033447000,-226.653617,0.00019178,2]
[421657667,1778033447000,-151.0,0.00019178,2]
[421657691,1778033447000,-887.0,0.0001929,2]
[421657669,1778033447000,-151.0,0.00019178,2]
[421657678,1778033447000,-184.02,0.000192,2]
[421657680,1778033447000,-500.0,0.0001925,2]
[421657682,1778033447000,-1481.23780761,0.00019253,2]
[421657687,1778033447000,-217.15233878,0.00019253,2]
[421657681,1778033447000,-200.0,0.00019253,2]
[421657683,1778033447000,-771.01748645,0.00019253,2]
[421657686,1778033447000,-1438.09495884,0.00019253,2]
[421657684,1778033447000,-181.08010149,0.00019253,2]
[421657685,1778033447000,-170.50234893,0.00019253,2]
[421657690,1778033447000,-801.0,0.0001929,2]
[421657689,1778033447000,-151.0,0.00019255,2]
[421657688,1778033447000,-13736.92445334,0.00019255,2]
[421657692,1778033447000,-281.0,0.00019369,2]
[421657674,1778033447000,-13246.79310833,0.000192,2]
[421657744,1778033447000,-162.51838138,0.0002,3]
[421657766,1778033447000,-3093.0,0.0002,2]
[421657746,1778033447000,-400.0,0.0002,2]
[421657809,1778033447000,-2000.0,0.00020234,2]
[421657805,1778033447000,-164.0,0.00020123,2]
[421657824,1778033447000,-1050.0,0.00020261,2]
[421657811,1778033447000,-1202.0,0.00020234,2]
[421657807,1778033447000,-2000.0,0.00020234,2]
[421657826,1778033447000,-1050.0,0.00020261,2]
[421657831,1778033447000,-1050.0,0.00020261,2]
[421657833,1778033447000,-1050.0,0.00020261,2]
[421657836,1778033447000,-1050.0,0.00020261,2]
[421657834,1778033447000,-1050.0,0.00020261,2]
[421657838,1778033447000,-1050.0,0.00020261,2]
[421657849,1778033447000,-152.0,0.00020312,14]
[421657851,1778033447000,-200.0,0.00020349,2]
[421657829,1778033447000,-1050.0,0.00020261,2]
[421657853,1778033447000,-1592.87721993,0.00020349,2]
[421657843,1778033447000,-632.0,0.00020261,2]
[421657841,1778033447000,-1050.0,0.00020261,2]
[421657748,1778033447000,-150.0,0.0002,2]
[421657847,1778033447000,-887.0,0.0002029,2]
[421657855,1778033447000,-829.12830338,0.00020349,2]
[421657869,1778033447000,-266.63750326,0.00020476,2]
[421657868,1778033447000,-234.53233936,0.00020476,2]
[421657857,1778033447000,-194.72792766,0.00020349,2]
[421657863,1778033447000,-231.44147278,0.00020476,2]
[421657865,1778033447000,-195.93811987,0.00020476,2]
[421657859,1778033447000,-1546.48273779,0.00020349,2]
[421657861,1778033447000,-1786.0,0.00020381,2]
[421657803,1778033447000,-150.0,0.00020123,2]
[421657822,1778033447000,-809.0,0.00020234,2]
[421657845,1778033447000,-801.0,0.0002029,2]
[421657819,1778033447000,-1000.0,0.00020234,2]
[421657801,1778033447000,-150.0,0.00020123,2]
[421657751,1778033447000,-150.0,0.0002,2]
[421657754,1778033447000,-150.0,0.0002,2]
[421657756,1778033447000,-234.2455945,0.0002,2]
[421657758,1778033447000,-200.0,0.0002,10]
[421657770,1778033447000,-200.0,0.0002,2]
[421657760,1778033447000,-193.155,0.0002,2]
[421657762,1778033447000,-165.23358036,0.0002,2]
[421657764,1778033447000,-267.0856,0.0002,7]
[421657772,1778033447000,-1123.0,0.0002,2]
[421657776,1778033447000,-157.15245404,0.00020006,2]
[421657778,1778033447000,-1350.0,0.00020035,2]
[421657774,1778033447000,-324.37751906,0.0002,7]
[421657793,1778033447000,-1350.0,0.00020035,2]
[421657768,1778033447000,-172.32997266,0.0002,2]
[421657780,1778033447000,-1350.0,0.00020035,2]
[421657815,1778033447000,-1000.0,0.00020234,2]
[421657782,1778033447000,-1350.0,0.00020035,2]
[421657820,1778033447000,-1000.0,0.00020234,2]
[421657817,1778033447000,-1000.0,0.00020234,2]
[421657799,1778033447000,-300.0,0.000201,10]
[421657797,1778033447000,-151.0,0.00020074,2]
[421657813,1778033447000,-1000.0,0.00020234,2]
[421657786,1778033447000,-1350.0,0.00020035,2]
[421657792,1778033447000,-1350.0,0.00020035,2]
[421657795,1778033447000,-1256.0,0.00020035,2]
[421657790,1778033447000,-1350.0,0.00020035,2]
[421657784,1778033447000,-1350.0,0.00020035,2]
[421657788,1778033447000,-1350.0,0.00020035,2]
[421657895,1778033448000,-624.0,0.000209,2]
[421657899,1778033448000,-200.0,0.00020964,2]
[421657890,1778033448000,-150.0,0.000209,2]
[421657897,1778033448000,-200.0,0.00020964,2]
[421657894,1778033448000,-1352.0,0.000209,2]
[421657900,1778033448000,-200.0,0.00020964,2]
[421657910,1778033448000,-650.0,0.00020998,2]
[421657905,1778033448000,-194.0,0.00020964,2]
[421657909,1778033448000,-650.0,0.00020998,2]
[421657906,1778033448000,-16447.83557508,0.00020989,2]
[421657908,1778033448000,-650.0,0.00020998,2]
[421657904,1778033448000,-200.0,0.00020964,2]
[421657902,1778033448000,-200.0,0.00020964,2]
[421657901,1778033448000,-200.0,0.00020964,2]
[421657903,1778033448000,-200.0,0.00020964,2]
[421657911,1778033448000,-650.0,0.00020998,2]
[421657892,1778033448000,-3536.0,0.000209,2]
[421657907,1778033448000,-650.0,0.00020998,2]
[421657893,1778033448000,-925.0,0.000209,2]
[421657878,1778033448000,-3625.0,0.00020699,2]
[421657891,1778033448000,-150.0,0.000209,2]
[421657914,1778033448000,-650.0,0.00020998,2]
[421657874,1778033448000,-744.82,0.000205,2]
[421657872,1778033448000,-372.55310551,0.00020476,2]
[421657875,1778033448000,-1317.0,0.00020512,2]
[421657876,1778033448000,-1221.0,0.00020623,2]
[421657877,1778033448000,-152.0,0.00020691,15]
[421657885,1778033448000,-201.93286099,0.00020897,2]
[421657880,1778033448000,-150.0,0.00020734,2]
[421657896,1778033448000,-2000.0,0.00020946,2]
[421657879,1778033448000,-6043.0,0.00020699,2]
[421657881,1778033448000,-10598.58992052,0.00020809,2]
[421657883,1778033448000,-1651.81367706,0.00020897,2]
[421657884,1778033448000,-859.80605061,0.00020897,2]
[421657886,1778033448000,-1603.70259909,0.00020897,2]
[421657888,1778033448000,-150.0,0.000209,2]
[421657898,1778033448000,-200.0,0.00020964,2]
[421657887,1778033448000,-150.0,0.000209,2]
[421657889,1778033448000,-150.0,0.000209,2]
[421657882,1778033448000,-200.0,0.00020897,2]
[421657915,1778033448000,-650.0,0.00020998,2]
[421657938,1778033448000,-599.60298507,0.00021444,2]
[421657922,1778033448000,-150.0,0.00021016,2]
[421657936,1778033448000,-512.81554833,0.000214,2]
[421657939,1778033448000,-747.8093786,0.00021444,2]
[421657946,1778033448000,-152.0,0.0002145,17]
[421657940,1778033448000,-500.0,0.00021444,2]
[421657942,1778033448000,-1712.93078312,0.00021445,2]
[421657944,1778033448000,-209.40437684,0.00021445,2]
[421657943,1778033448000,-962.12386358,0.00021445,2]
[421657945,1778033448000,-1663.03959526,0.00021445,2]
[421657956,1778033448000,-928.0,0.00014889,2]
[421657941,1778033448000,-200.0,0.00021445,2]
[421657947,1778033448000,-157.67450036,0.0002145,5]
[421657951,1778033448000,-512.81554833,0.000216,2]
[421657949,1778033448000,-224.73459762,0.000215,2]
[421657953,1778033448000,-157.15245404,0.00021764,2]
[421657950,1778033448000,-350.0,0.00021551,2]
[421657954,1778033448000,-22321.09651165,0.0002178,2]
[421657952,1778033448000,-150.0,0.00021734,2]
[421657955,1778033448000,-207.77662871,0.00014699,2]
[421657948,1778033448000,-154.62096933,0.0002145,5]
[421657937,1778033448000,-151.0,0.00021443,2]
[421657917,1778033448000,-155.0,0.00020999,2]
[421657932,1778033448000,-160.0,0.00021218,2]
[421657916,1778033448000,-168.0,0.00020998,2]
[421657913,1778033448000,-650.0,0.00020998,2]
[421657912,1778033448000,-650.0,0.00020998,2]
[421657918,1778033448000,-161.49,0.00021,2]
[421657935,1778033448000,-350.0,0.00021309,2]
[421657920,1778033448000,-150.0,0.00021016,2]
[421657919,1778033448000,-160.0,0.00021,10]
[421657924,1778033448000,-150.0,0.00021016,2]
[421657934,1778033448000,-906.40980863,0.0002129,2]
[421657921,1778033448000,-150.0,0.00021016,2]
[421657923,1778033448000,-150.0,0.00021016,2]
[421657926,1778033448000,-1872.62650784,0.00021025,2]
[421657931,1778033448000,-207.81184135,0.00021218,2]
[421657928,1778033448000,-512.81554833,0.000212,2]
[421657930,1778033448000,-162.55277151,0.00021215,2]
[421657929,1778033448000,-1634.61,0.000212,2]
[421657925,1778033448000,-195.0,0.00021016,2]
[421657933,1778033448000,-803.57579606,0.0002129,2]
[421657927,1778033448000,-152.0,0.00021071,16]
[421657982,1778033449000,-2447.7478578,0.00021918,2]
[421657989,1778033449000,-151.0,0.00022,2]
[421657986,1778033449000,-1724.57206028,0.00021993,2]
[421657981,1778033449000,-659.30907396,0.00021918,2]
[421657987,1778033449000,-1068.28640941,0.00022,4]
[421657985,1778033449000,-217.15233878,0.00021993,2]
[421657984,1778033449000,-200.0,0.00021993,2]
[421657983,1778033449000,-255.971741,0.00021918,2]
[421657988,1778033449000,-160.0,0.00022,2]
[421657993,1778033449000,-512.81554833,0.000221,2]
[421657994,1778033449000,-243.20099163,0.0002211,2]
[421657992,1778033449000,-450.0,0.00022,2]
[421658001,1778033449000,-186.86571217,0.00022407,2]
[421657995,1778033449000,-350.0,0.0002226,2]
[421657999,1778033449000,-1598.42989236,0.00022353,2]
[421657998,1778033449000,-307.0,0.000223,2]
[421657997,1778033449000,-314.0,0.000223,2]
[421657975,1778033449000,-151.0,0.00021918,2]
[421657990,1778033449000,-151.0,0.00022,2]
[421657973,1778033449000,-151.0,0.00021918,2]
[421657969,1778033449000,-350.0,0.00021892,2]
[421657977,1778033449000,-151.0,0.00021918,2]
[421657957,1778033449000,-928.0,0.00017889,2]
[421657958,1778033449000,-22889.6151287,0.0002178,2]
[421657960,1778033449000,-11363.68049788,0.0002178,2]
[421657959,1778033449000,-558.1042349,0.0002178,2]
[421657961,1778033449000,-3281.42634326,0.0002178,2]
[421657963,1778033449000,-1988.24523741,0.0002178,2]
[421657962,1778033449000,-928.0,0.00020889,2]
[421657964,1778033449000,-1496.59487774,0.0002178,2]
[421657965,1778033449000,-1838.8604776,0.0002178,2]
[421657974,1778033449000,-151.0,0.00021918,2]
[421657966,1778033449000,-853.9665,0.0002178,2]
[421657968,1778033449000,-24540.98862743,0.0002178,2]
[421657996,1778033449000,-1000.0,0.000223,2]
[421657980,1778033449000,-1892.94306824,0.00021918,2]
[421657971,1778033449000,-151.0,0.00021918,2]
[421657979,1778033449000,-153.405141,0.00021918,2]
[421657978,1778033449000,-151.0,0.00021918,2]
[421657972,1778033449000,-151.0,0.00021918,2]
[421657970,1778033449000,-512.81554833,0.000219,2]
[421657976,1778033449000,-151.0,0.00021918,2]
[421657967,1778033449000,-39.5523793,0.0002178,2]
[421658002,1778033449000,-186.86571216,0.00022407,2]
[421657991,1778033449000,-150.0,0.00022,2]
[421658047,1778033449000,-500.0,0.00023,7]
[421658031,1778033449000,-1150.0,0.00022896,2]
[421658026,1778033449000,-21.87853412,0.0002271,2]
[421658032,1778033449000,-1150.0,0.00022896,2]
[421658029,1778033449000,-500.0,0.000228,2]
[421658033,1778033449000,-1051.0,0.00022896,2]
[421658035,1778033449000,-1001.34976122,0.00023,2]
[421658040,1778033449000,-500.0,0.00023,7]
[421658038,1778033449000,-500.0,0.00023,7]
[421658034,1778033449000,-350.0,0.00022997,2]
[421658030,1778033449000,-151.0,0.00022812,2]
[421658037,1778033449000,-500.0,0.00023,7]
[421658039,1778033449000,-500.0,0.00023,7]
[421658041,1778033449000,-500.0,0.00023,7]
[421658044,1778033449000,-500.0,0.00023,7]
[421658042,1778033449000,-500.0,0.00023,7]
[421658043,1778033449000,-500.0,0.00023,7]
[421658046,1778033449000,-500.0,0.00023,7]
[421658045,1778033449000,-500.0,0.00023,7]
[421658004,1778033449000,-151.0,0.00022415,2]
[421658048,1778033449000,-500.0,0.00023,7]
[421658036,1778033449000,-500.0,0.00023,7]
[421658028,1778033449000,-150.0,0.00022734,2]
[421658000,1778033449000,-187.57010764,0.00022353,2]
[421658027,1778033449000,-507.88474383,0.0002271,2]
[421658014,1778033449000,-154.0,0.00022415,2]
[421658005,1778033449000,-1535.0,0.00022415,2]
[421658006,1778033449000,-1535.0,0.00022415,2]
[421658003,1778033449000,-154.99221299,0.00022415,2]
[421658008,1778033449000,-466.42334235,0.00022415,2]
[421658025,1778033449000,-1986.63167319,0.000226,2]
[421658011,1778033449000,-152.0,0.00022415,2]
[421658007,1778033449000,-1535.0,0.00022415,2]
[421658012,1778033449000,-154.4233642,0.00022415,2]
[421658010,1778033449000,-152.0,0.00022415,2]
[421658013,1778033449000,-154.0,0.00022415,2]
[421658015,1778033449000,-350.0,0.00022445,2]
[421658016,1778033449000,-1271.05,0.00022466,2]
[421658017,1778033449000,-350.0,0.00022472,2]
[421658020,1778033449000,-200.0,0.00022541,2]
[421658018,1778033449000,-744.82,0.000225,7]
[421658019,1778033449000,-10598.58992052,0.0002253,2]
[421658021,1778033449000,-225.18697532,0.00022541,2]
[421658022,1778033449000,-1788.38122651,0.00022541,2]
[421658023,1778033449000,-16204.24468017,0.00022566,2]
[421658024,1778033449000,-243.59089491,0.00022566,2]
[421658009,1778033449000,-152.0,0.00022415,2]
[421658057,1778033450000,-57.5936102,0.00023,7]
[421658058,1778033450000,-442.4063898,0.00023,7]
[421658055,1778033450000,-162.51838138,0.00023,7]
[421658054,1778033450000,-479.6,0.00023,7]
[421658056,1778033450000,-160.0,0.00023,7]
[421658051,1778033450000,-500.0,0.00023,7]
[421658053,1778033450000,-500.0,0.00023,7]
[421658052,1778033450000,-500.0,0.00023,7]
[421658049,1778033450000,-500.0,0.00023,7]
[421658050,1778033450000,-500.0,0.00023,7]
[421658060,1778033450000,-332.9863898,0.00023,7]
[421658068,1778033450000,-150.0,0.00023166,2]
[421658061,1778033450000,-200.0,0.00023089,2]
[421658066,1778033450000,-150.0,0.00023161,2]
[421658062,1778033450000,-233.51889341,0.00023089,2]
[421658067,1778033450000,-218.0,0.00023161,2]
[421658063,1778033450000,-1854.55133189,0.00023089,2]
[421658065,1778033450000,-147.7366151,0.00023161,2]
[421658064,1778033450000,-2.2633849,0.00023161,2]
[421658070,1778033450000,-22.98321995,0.00023166,2]
[421658069,1778033450000,-275.01678005,0.00023166,2]
[421658071,1778033450000,-850.0,0.00023198,2]
[421658072,1778033450000,-1.06562272,0.00023198,2]
[421658059,1778033450000,-13.5936102,0.00023,7]
[421658073,1778033460000,3888.039107,0.00026006,120]
[421658074,1778033470000,675.75,0.00022,30]
[421658075,1778033581000,253.11976845,0.00011255,7]
[421658076,1778033668000,208.287809,0.00024164,120]
[421658077,1778033707000,166.0,0.000226,120]
[421658079,1778033734000,507.63,0.0002841,120]